[Event "Late-Titled-Tuesday-Blitz-May-14-2024"]
[Site "Chess.com"]
[Date "2024.05.14"]
[Round "2"]
[White "Hrant_ChessMood"]
[Black "Cipy77"]
[Result "1-0"]
[WhiteElo "2951"]
[BlackElo "2640"]
[TimeControl "180+1"]
[EndTime "14:18:57 PDT"]
[Termination "Hrant_ChessMood won by resignation"]

1. d4 {[%clk 0:02:58.7]} 1... Nf6 {[%clk 0:02:57]} 2. c4 {[%clk 0:02:58.5]} 2...
e6 {[%clk 0:02:55.9]} 3. Nc3 {[%clk 0:02:55.9]} 3... Bb4 {[%clk 0:02:54.9]} 4.
e3 {[%clk 0:02:56.1]} 4... O-O {[%clk 0:02:54]} 5. Bd3 {[%clk 0:02:56.9]} 5...
c5 {[%clk 0:02:54.2]} 6. Nf3 {[%clk 0:02:55.7]} 6... b6 {[%clk 0:02:53.2]} 7.
O-O {[%clk 0:02:55.2]} 7... cxd4 {[%clk 0:02:51.1]} 8. exd4 {[%clk 0:02:54.5]}
8... Bb7 {[%clk 0:02:50.9]} 9. Bg5 {[%clk 0:02:52.3]} 9... Be7 {[%clk
0:02:47.9]} 10. Qe2 {[%clk 0:02:47.1]} 10... d5 {[%clk 0:02:47.2]} 11. cxd5
{[%clk 0:02:44.1]} 11... Nxd5 {[%clk 0:02:45]} 12. Qe4 {[%clk 0:02:27.8]} 12...
g6 {[%clk 0:02:43.9]} 13. Qh4 {[%clk 0:02:13.1]} 13... Bxg5 {[%clk 0:02:15.8]}
14. Nxg5 {[%clk 0:02:12.7]} 14... Nf6 {[%clk 0:02:08.2]} 15. Be4 {[%clk
0:01:36.3]} 15... Bxe4 {[%clk 0:02:05.8]} 16. Ncxe4 {[%clk 0:01:36.3]} 16...
Nbd7 {[%clk 0:02:05.8]} 17. Rad1 {[%clk 0:01:30]} 17... Kg7 {[%clk 0:01:53.1]}
18. d5 {[%clk 0:01:24.1]} 18... exd5 {[%clk 0:01:42.1]} 19. Nc3 {[%clk
0:00:54.1]} 19... h6 {[%clk 0:01:39.6]} 20. Nf3 {[%clk 0:00:53.9]} 20... Nc5
{[%clk 0:01:37.4]} 21. Qd4 {[%clk 0:00:34]} 21... Ne6 {[%clk 0:01:36.6]} 22. Qe5
{[%clk 0:00:34.1]} 22... Qc7 {[%clk 0:01:34.8]} 23. Qxf6+ {[%clk 0:00:32.8]}
23... Kxf6 {[%clk 0:01:35.7]} 24. Nxd5+ {[%clk 0:00:33.6]} 24... Kg7 {[%clk
0:01:36.2]} 25. Nxc7 {[%clk 0:00:34.2]} 25... Nxc7 {[%clk 0:01:37]} 26. Rd7
{[%clk 0:00:33.7]} 26... Ne6 {[%clk 0:01:37.3]} 27. Rfd1 {[%clk 0:00:33.1]}
27... Rad8 {[%clk 0:01:35.3]} 28. Ne5 {[%clk 0:00:31.7]} 28... Kf6 {[%clk
0:01:30.4]} 29. Ng4+ {[%clk 0:00:26.4]} 29... Kg7 {[%clk 0:01:23]} 30. Ne3
{[%clk 0:00:27.3]} 30... Rxd7 {[%clk 0:01:21.4]} 31. Rxd7 {[%clk 0:00:28.2]}
31... Rc8 {[%clk 0:01:21]} 32. g3 {[%clk 0:00:27.3]} 32... Rc7 {[%clk
0:01:19.7]} 33. Rd6 {[%clk 0:00:27]} 33... Kf8 {[%clk 0:01:17]} 34. h4 {[%clk
0:00:26.1]} 34... Ke7 {[%clk 0:01:16.1]} 35. Rd1 {[%clk 0:00:26.4]} 35... Rc5
{[%clk 0:01:14.9]} 36. b4 {[%clk 0:00:24.5]} 36... Re5 {[%clk 0:01:03.2]} 37. a4
{[%clk 0:00:22.9]} 37... Re4 {[%clk 0:01:02.2]} 38. Kg2 {[%clk 0:00:21.9]} 38...
h5 {[%clk 0:00:59.5]} 39. Kf3 {[%clk 0:00:20.5]} 39... Rd4 {[%clk 0:00:59.3]}
40. Rxd4 {[%clk 0:00:17.3]} 40... Nxd4+ {[%clk 0:01:00.2]} 41. Ke4 {[%clk
0:00:18.2]} 41... Ne6 {[%clk 0:00:58.8]} 42. Kd5 {[%clk 0:00:18]} 42... Kd7
{[%clk 0:00:57.1]} 43. Nc4 {[%clk 0:00:18.1]} 43... Nc7+ {[%clk 0:00:55.1]} 44.
Ke5 {[%clk 0:00:18.1]} 44... Na6 {[%clk 0:00:55.2]} 45. Kf6 {[%clk 0:00:13.8]}
45... Nxb4 {[%clk 0:00:37.2]} 46. Kxf7 {[%clk 0:00:13.9]} 46... Nd3 {[%clk
0:00:37.7]} 47. f4 {[%clk 0:00:10.2]} 47... Nc5 {[%clk 0:00:33.7]} 48. Kxg6
{[%clk 0:00:08.8]} 48... Nxa4 {[%clk 0:00:33.8]} 49. Kxh5 {[%clk 0:00:08]} 49...
b5 {[%clk 0:00:34.5]} 50. Na5 {[%clk 0:00:07.6]} 50... Nc5 {[%clk 0:00:33.6]}
51. Kg6 {[%clk 0:00:07]} 51... b4 {[%clk 0:00:34.1]} 52. h5 {[%clk 0:00:05.4]}
52... Ke7 {[%clk 0:00:32.9]} 53. h6 {[%clk 0:00:04.8]} 53... Ne6 {[%clk
0:00:31.1]} 54. h7 {[%clk 0:00:04.9]} 54... Nf8+ {[%clk 0:00:31.5]} 55. Kg7
{[%clk 0:00:05.5]} 55... Nxh7 {[%clk 0:00:32.1]} 56. Kxh7 {[%clk 0:00:06.4]}
56... Kf6 {[%clk 0:00:32.6]} 57. g4 {[%clk 0:00:07]} 57... Ke6 {[%clk
0:00:32.7]} 58. g5 {[%clk 0:00:07.4]} 1-0

[Event "Late-Titled-Tuesday-Blitz-May-14-2024"]
[Site "Chess.com"]
[Date "2024.05.14"]
[Round "2"]
[White "Schattman"]
[Black "AradNazari"]
[Result "0-1"]
[WhiteElo "2561"]
[BlackElo "2802"]
[TimeControl "180+1"]
[EndTime "14:18:59 PDT"]
[Termination "AradNazari won on time"]

1. d4 {[%clk 0:03:00.9]} 1... Nf6 {[%clk 0:02:58.5]} 2. Bf4 {[%clk 0:02:58.8]}
2... g6 {[%clk 0:02:54.7]} 3. c3 {[%clk 0:02:55.9]} 3... Bg7 {[%clk 0:02:55.2]}
4. Nd2 {[%clk 0:02:54.8]} 4... O-O {[%clk 0:02:55.8]} 5. h3 {[%clk 0:02:51.5]}
5... b6 {[%clk 0:02:55.8]} 6. e3 {[%clk 0:02:47.6]} 6... Bb7 {[%clk 0:02:56.4]}
7. Ngf3 {[%clk 0:02:47.9]} 7... d6 {[%clk 0:02:56.9]} 8. a4 {[%clk 0:02:45.3]}
8... Nbd7 {[%clk 0:02:57.5]} 9. a5 {[%clk 0:02:45.2]} 9... bxa5 {[%clk
0:02:56.2]} 10. Rxa5 {[%clk 0:02:42.6]} 10... c5 {[%clk 0:02:56.7]} 11. Qa1
{[%clk 0:02:35.3]} 11... Nd5 {[%clk 0:02:41.3]} 12. Bh2 {[%clk 0:02:25.7]} 12...
cxd4 {[%clk 0:02:41.2]} 13. exd4 {[%clk 0:02:11.3]} 13... e5 {[%clk 0:02:41.7]}
14. dxe5 {[%clk 0:02:00.2]} 14... Re8 {[%clk 0:02:39.3]} 15. Bb5 {[%clk
0:01:48.2]} 15... Bxe5 {[%clk 0:02:18]} 16. O-O {[%clk 0:01:34.5]} 16... Bxh2+
{[%clk 0:02:15.1]} 17. Kxh2 {[%clk 0:01:27.9]} 17... Re6 {[%clk 0:02:08]} 18.
Rxa7 {[%clk 0:01:15.2]} 18... Nc5 {[%clk 0:02:01.3]} 19. Rxa8 {[%clk 0:01:05.1]}
19... Bxa8 {[%clk 0:02:01.6]} 20. Nd4 {[%clk 0:01:04.3]} 20... Rf6 {[%clk
0:01:57.2]} 21. b4 {[%clk 0:00:52.6]} 21... Nf4 {[%clk 0:01:31.4]} 22. Nc6
{[%clk 0:00:36.4]} 22... Bxc6 {[%clk 0:01:11.1]} 23. Bxc6 {[%clk 0:00:37.3]}
23... Nce6 {[%clk 0:01:07.1]} 24. Qa8 {[%clk 0:00:34.8]} 24... Nd3 {[%clk
0:01:02.1]} 25. Ne4 {[%clk 0:00:22.9]} 25... Rf4 {[%clk 0:00:57.1]} 26. Nxd6
{[%clk 0:00:20.2]} 26... Nxf2 {[%clk 0:00:50.8]} 27. Qxd8+ {[%clk 0:00:16.9]}
27... Nxd8 {[%clk 0:00:50.7]} 28. Bf3 {[%clk 0:00:16.7]} 28... Nd3 {[%clk
0:00:50.6]} 29. Rd1 {[%clk 0:00:15]} 29... Nb2 {[%clk 0:00:49.4]} 30. Rd2 {[%clk
0:00:13.9]} 30... Na4 {[%clk 0:00:50]} 31. Ne4 {[%clk 0:00:12]} 31... Ne6 {[%clk
0:00:47.8]} 32. c4 {[%clk 0:00:10.9]} 32... f5 {[%clk 0:00:44.2]} 33. Nd6 {[%clk
0:00:10.2]} 33... g5 {[%clk 0:00:40.5]} 34. Bd5 {[%clk 0:00:09.7]} 34... g4
{[%clk 0:00:33.4]} 35. Bxe6+ {[%clk 0:00:09.3]} 35... Kg7 {[%clk 0:00:34.1]} 36.
hxg4 {[%clk 0:00:08.9]} 36... fxg4 {[%clk 0:00:34.1]} 37. Kg3 {[%clk 0:00:09]}
37... Rf6 {[%clk 0:00:34.6]} 38. Bxg4 {[%clk 0:00:07.4]} 38... Rg6 {[%clk
0:00:32.8]} 39. Kh3 {[%clk 0:00:07.1]} 39... Rh6+ {[%clk 0:00:32.9]} 40. Kg3
{[%clk 0:00:06.9]} 40... Rg6 {[%clk 0:00:33.8]} 41. Nf5+ {[%clk 0:00:06.8]}
41... Kf6 {[%clk 0:00:33.8]} 42. Kf3 {[%clk 0:00:06.6]} 42... Kg5 {[%clk
0:00:32.3]} 43. Bh3 {[%clk 0:00:06.3]} 43... h5 {[%clk 0:00:32.6]} 44. Rd5
{[%clk 0:00:05.3]} 44... Rf6 {[%clk 0:00:32.7]} 45. Kg3 {[%clk 0:00:03.5]} 45...
Nc3 {[%clk 0:00:33.1]} 46. Re5 {[%clk 0:00:02.8]} 46... Ra6 {[%clk 0:00:32.4]}
47. b5 {[%clk 0:00:03]} 47... Ra3 {[%clk 0:00:32.4]} 48. Kh2 {[%clk 0:00:03.2]}
48... Kf4 {[%clk 0:00:32.8]} 49. b6 {[%clk 0:00:03.6]} 49... Kxe5 {[%clk
0:00:32.8]} 50. c5 {[%clk 0:00:03.8]} 50... Rb3 {[%clk 0:00:32.8]} 51. Ne7
{[%clk 0:00:02.9]} 51... Na4 {[%clk 0:00:32.9]} 52. Bd7 {[%clk 0:00:03]} 52...
Nxc5 {[%clk 0:00:33]} 53. Bc6 {[%clk 0:00:02.8]} 53... Rxb6 {[%clk 0:00:33.1]}
54. Ng6+ {[%clk 0:00:02.1]} 54... Kf6 {[%clk 0:00:32.3]} 55. Nf4 {[%clk
0:00:02]} 55... Rxc6 {[%clk 0:00:32.3]} 56. Nd5+ {[%clk 0:00:02.9]} 56... Kg5
{[%clk 0:00:32.3]} 57. Ne3 {[%clk 0:00:02.8]} 57... Rd6 {[%clk 0:00:32.1]} 58.
Nd5 {[%clk 0:00:02.7]} 58... Rxd5 {[%clk 0:00:32.5]} 59. g4 {[%clk 0:00:03.6]}
59... hxg4 {[%clk 0:00:32.5]} 0-1

[Event "Late-Titled-Tuesday-Blitz-May-14-2024"]
[Site "Chess.com"]
[Date "2024.05.14"]
[Round "2"]
[White "Love7Unicorn"]
[Black "ZachHKL"]
[Result "1/2-1/2"]
[WhiteElo "2516"]
[BlackElo "2309"]
[TimeControl "180+1"]
[EndTime "14:19:03 PDT"]
[Termination "Game drawn by repetition"]

1. d4 {[%clk 0:03:00.9]} 1... Nf6 {[%clk 0:02:59.3]} 2. c4 {[%clk 0:03:01.1]}
2... e6 {[%clk 0:02:59.1]} 3. g3 {[%clk 0:03:01.3]} 3... c5 {[%clk 0:02:57.7]}
4. d5 {[%clk 0:03:01.6]} 4... exd5 {[%clk 0:02:58]} 5. cxd5 {[%clk 0:03:02.5]}
5... d6 {[%clk 0:02:58]} 6. Nc3 {[%clk 0:03:03.2]} 6... g6 {[%clk 0:02:57.7]} 7.
Bg2 {[%clk 0:03:03.8]} 7... Bg7 {[%clk 0:02:58.3]} 8. Nf3 {[%clk 0:03:04.5]}
8... O-O {[%clk 0:02:58.6]} 9. O-O {[%clk 0:03:05.2]} 9... a6 {[%clk 0:02:58.3]}
10. a4 {[%clk 0:03:05.7]} 10... Qe7 {[%clk 0:02:55.7]} 11. h3 {[%clk 0:03:02.8]}
11... Re8 {[%clk 0:02:50.7]} 12. Re1 {[%clk 0:02:59.5]} 12... Nbd7 {[%clk
0:02:44.3]} 13. Bf4 {[%clk 0:02:55.6]} 13... h6 {[%clk 0:02:30.6]} 14. g4 {[%clk
0:02:54.5]} 14... Kh7 {[%clk 0:02:25.9]} 15. e4 {[%clk 0:02:45.5]} 15... Ne5
{[%clk 0:02:14]} 16. Nxe5 {[%clk 0:02:13.1]} 16... dxe5 {[%clk 0:02:13.1]} 17.
Be3 {[%clk 0:02:14]} 17... Rd8 {[%clk 0:02:04.6]} 18. Qd2 {[%clk 0:01:29]} 18...
g5 {[%clk 0:01:58.1]} 19. f3 {[%clk 0:01:25]} 19... b6 {[%clk 0:01:45.3]} 20.
Kf2 {[%clk 0:01:24.4]} 20... Bb7 {[%clk 0:01:44.4]} 21. Rad1 {[%clk 0:01:21.8]}
21... Ne8 {[%clk 0:01:35.9]} 22. Rh1 {[%clk 0:01:17.8]} 22... Nd6 {[%clk
0:01:29.8]} 23. Bf1 {[%clk 0:01:17.9]} 23... Rac8 {[%clk 0:01:11.7]} 24. Be2
{[%clk 0:01:14.5]} 24... Kg6 {[%clk 0:01:11]} 25. h4 {[%clk 0:01:09.8]} 25... f6
{[%clk 0:01:11.2]} 26. Qc2 {[%clk 0:01:01.2]} 26... Qc7 {[%clk 0:00:48.3]} 27.
Qb3 {[%clk 0:00:54.4]} 27... Rb8 {[%clk 0:00:40.7]} 28. Rh2 {[%clk 0:00:51.3]}
28... Rh8 {[%clk 0:00:37.9]} 29. hxg5 {[%clk 0:00:46.1]} 29... hxg5 {[%clk
0:00:35.7]} 30. Rdh1 {[%clk 0:00:46.5]} 30... Rxh2+ {[%clk 0:00:34.4]} 31. Rxh2
{[%clk 0:00:47.4]} 31... Bc8 {[%clk 0:00:23.7]} 32. Qd1 {[%clk 0:00:40.1]} 32...
b5 {[%clk 0:00:20.7]} 33. Qh1 {[%clk 0:00:39.5]} 33... Kf7 {[%clk 0:00:11.5]}
34. Rh7 {[%clk 0:00:35.5]} 34... Kg8 {[%clk 0:00:11.7]} 35. Qh5 {[%clk
0:00:25.9]} 35... b4 {[%clk 0:00:04.6]} 36. Nd1 {[%clk 0:00:15.6]} 36... c4
{[%clk 0:00:05]} 37. Qg6 {[%clk 0:00:10.4]} 37... Qf7 {[%clk 0:00:05.1]} 38.
Qxf7+ {[%clk 0:00:06.7]} 38... Nxf7 {[%clk 0:00:05.1]} 39. Rxg7+ {[%clk
0:00:04.6]} 39... Kxg7 {[%clk 0:00:05.2]} 40. Bxc4 {[%clk 0:00:05.5]} 40... Nd6
{[%clk 0:00:06.1]} 41. Bd3 {[%clk 0:00:05.6]} 41... Bd7 {[%clk 0:00:04.8]} 42.
b3 {[%clk 0:00:05.8]} 42... a5 {[%clk 0:00:04.8]} 43. Ke2 {[%clk 0:00:06.1]}
43... Rc8 {[%clk 0:00:04.9]} 44. Bd2 {[%clk 0:00:06.7]} 44... Nb7 {[%clk
0:00:05.3]} 45. Nb2 {[%clk 0:00:07.4]} 45... Nc5 {[%clk 0:00:05.9]} 46. Bc4
{[%clk 0:00:08]} 46... Kf7 {[%clk 0:00:05.8]} 47. Nd3 {[%clk 0:00:08.4]} 47...
Nxd3 {[%clk 0:00:05.5]} 48. Kxd3 {[%clk 0:00:09.3]} 48... Ke7 {[%clk 0:00:06.1]}
49. Be3 {[%clk 0:00:09.9]} 49... Kd6 {[%clk 0:00:05.6]} 50. Bb6 {[%clk
0:00:10.5]} 50... Ra8 {[%clk 0:00:06.2]} 51. Kd2 {[%clk 0:00:07.4]} 51... Bc8
{[%clk 0:00:06.7]} 52. Bb5 {[%clk 0:00:06]} 52... Bd7 {[%clk 0:00:06.4]} 53. Bc4
{[%clk 0:00:04.9]} 53... Ke7 {[%clk 0:00:06.2]} 54. Bc5+ {[%clk 0:00:04.5]}
54... Kd8 {[%clk 0:00:06.5]} 55. Bb6+ {[%clk 0:00:05]} 55... Ke7 {[%clk
0:00:06.7]} 56. Bc5+ {[%clk 0:00:05.4]} 56... Kf7 {[%clk 0:00:06.9]} 57. Bb6
{[%clk 0:00:05.9]} 57... Ke7 {[%clk 0:00:07.1]} 1/2-1/2

[Event "Late-Titled-Tuesday-Blitz-May-14-2024"]
[Site "Chess.com"]
[Date "2024.05.14"]
[Round "2"]
[White "simaopdias"]
[Black "manmanlai1"]
[Result "1-0"]
[WhiteElo "2237"]
[BlackElo "2566"]
[TimeControl "180+1"]
[EndTime "14:19:13 PDT"]
[Termination "simaopdias won by resignation"]

1. e4 {[%clk 0:03:00.4]} 1... c5 {[%clk 0:03:00.4]} 2. Nf3 {[%clk 0:03:00.2]}
2... e6 {[%clk 0:03:00.4]} 3. d4 {[%clk 0:03:00.9]} 3... cxd4 {[%clk 0:02:29.3]}
4. Nxd4 {[%clk 0:03:01.8]} 4... a6 {[%clk 0:02:27.8]} 5. c4 {[%clk 0:03:01.6]}
5... Qc7 {[%clk 0:02:24.6]} 6. Bd3 {[%clk 0:03:00.9]} 6... g6 {[%clk 0:02:25.1]}
7. O-O {[%clk 0:03:00.7]} 7... Bg7 {[%clk 0:02:25.6]} 8. Be3 {[%clk 0:03:00]}
8... Nc6 {[%clk 0:02:26]} 9. Nxc6 {[%clk 0:02:57.6]} 9... bxc6 {[%clk
0:02:25.6]} 10. Qc2 {[%clk 0:02:54.3]} 10... d6 {[%clk 0:02:24.6]} 11. Nd2
{[%clk 0:02:54]} 11... c5 {[%clk 0:02:24]} 12. Rad1 {[%clk 0:02:45.2]} 12... Ne7
{[%clk 0:02:24.2]} 13. f4 {[%clk 0:02:43.7]} 13... Bb7 {[%clk 0:02:24.5]} 14.
Nf3 {[%clk 0:02:43.2]} 14... O-O {[%clk 0:02:24.8]} 15. b3 {[%clk 0:02:42.9]}
15... Rfd8 {[%clk 0:02:24.7]} 16. Bc1 {[%clk 0:02:40.1]} 16... a5 {[%clk
0:02:24.1]} 17. Bb2 {[%clk 0:02:39.9]} 17... a4 {[%clk 0:02:24.5]} 18. Bxg7
{[%clk 0:02:39.5]} 18... Kxg7 {[%clk 0:02:24.2]} 19. f5 {[%clk 0:02:24.8]} 19...
Ng8 {[%clk 0:02:24.1]} 20. bxa4 {[%clk 0:02:15.9]} 20... exf5 {[%clk 0:02:16.7]}
21. exf5 {[%clk 0:02:06.1]} 21... Qe7 {[%clk 0:02:03.9]} 22. Rde1 {[%clk
0:01:55.5]} 22... Qd7 {[%clk 0:01:53]} 23. Ng5 {[%clk 0:01:40.8]} 23... h6
{[%clk 0:01:32.2]} 24. Nxf7 {[%clk 0:01:28]} 24... Kxf7 {[%clk 0:01:26.4]} 25.
fxg6+ {[%clk 0:01:27.2]} 25... Kg7 {[%clk 0:01:26.3]} 26. Rf7+ {[%clk 0:01:27]}
26... Qxf7 {[%clk 0:01:26.9]} 27. gxf7 {[%clk 0:01:27.8]} 27... Kxf7 {[%clk
0:01:27.8]} 28. Be4 {[%clk 0:01:07.1]} 28... Bxe4 {[%clk 0:01:22.3]} 29. Qxe4
{[%clk 0:01:07]} 29... Nf6 {[%clk 0:01:17.9]} 30. Rf1 {[%clk 0:00:59]} 30... Re8
{[%clk 0:01:14.2]} 31. Qh7+ {[%clk 0:00:55.2]} 31... Ke6 {[%clk 0:01:10.2]} 32.
Qxh6 {[%clk 0:00:54.9]} 32... Rf8 {[%clk 0:01:09.8]} 33. Qh3+ {[%clk 0:00:42.7]}
33... Ke7 {[%clk 0:01:08.4]} 34. Qe3+ {[%clk 0:00:39.8]} 34... Kd8 {[%clk
0:01:08.6]} 35. Qg5 {[%clk 0:00:37.6]} 35... Ke7 {[%clk 0:01:07.3]} 36. Re1+
{[%clk 0:00:36.3]} 36... Kd7 {[%clk 0:01:07.4]} 37. Qf5+ {[%clk 0:00:35.2]}
37... Kc6 {[%clk 0:01:05.1]} 38. Re6 {[%clk 0:00:28.4]} 38... Nd7 {[%clk
0:00:37.8]} 39. Qd5+ {[%clk 0:00:27.9]} 39... Kc7 {[%clk 0:00:38.5]} 40. Qxd6+
{[%clk 0:00:27.9]} 40... Kd8 {[%clk 0:00:39.2]} 41. Qe7+ {[%clk 0:00:18.2]}
41... Kc7 {[%clk 0:00:38.6]} 42. Qd6+ {[%clk 0:00:18.4]} 42... Kd8 {[%clk
0:00:39.1]} 43. Re7 {[%clk 0:00:16.3]} 43... Ra7 {[%clk 0:00:39]} 44. Rxd7+
{[%clk 0:00:15.8]} 44... Rxd7 {[%clk 0:00:39.9]} 45. Qxf8+ {[%clk 0:00:15.3]}
45... Kc7 {[%clk 0:00:40.8]} 46. Qxc5+ {[%clk 0:00:15.6]} 46... Kb7 {[%clk
0:00:41]} 47. a5 {[%clk 0:00:14.3]} 47... Rd1+ {[%clk 0:00:40.2]} 48. Kf2 {[%clk
0:00:14.8]} 48... Ka8 {[%clk 0:00:40.3]} 49. Qc6+ {[%clk 0:00:14.4]} 49... Ka7
{[%clk 0:00:40.2]} 50. Qb6+ {[%clk 0:00:14.5]} 50... Ka8 {[%clk 0:00:40.1]} 51.
Qc6+ {[%clk 0:00:13.8]} 51... Kb8 {[%clk 0:00:39.3]} 52. Qe8+ {[%clk 0:00:13.5]}
52... Ka7 {[%clk 0:00:39.3]} 53. Qf7+ {[%clk 0:00:13.6]} 53... Ka6 {[%clk
0:00:39]} 54. Qg6+ {[%clk 0:00:09.9]} 54... Ka7 {[%clk 0:00:38.3]} 55. Qh7+
{[%clk 0:00:09.3]} 55... Ka6 {[%clk 0:00:37.6]} 56. Qh6+ {[%clk 0:00:09]} 56...
Ka7 {[%clk 0:00:37.5]} 57. Qb6+ {[%clk 0:00:08.8]} 57... Ka8 {[%clk 0:00:37.5]}
58. Qb5 {[%clk 0:00:09]} 58... Ka7 {[%clk 0:00:36.3]} 59. a6 {[%clk 0:00:08.2]}
59... Rd2+ {[%clk 0:00:36.2]} 60. Ke1 {[%clk 0:00:08]} 60... Rd7 {[%clk
0:00:36]} 61. Qb7+ {[%clk 0:00:07.8]} 61... Rxb7 {[%clk 0:00:35.6]} 62. axb7
{[%clk 0:00:08.7]} 62... Kxb7 {[%clk 0:00:36.5]} 63. h4 {[%clk 0:00:09]} 63...
Kc6 {[%clk 0:00:37.4]} 64. g4 {[%clk 0:00:09.5]} 64... Kd6 {[%clk 0:00:38.3]}
65. Kf2 {[%clk 0:00:09.6]} 65... Ke6 {[%clk 0:00:39.2]} 66. Kf3 {[%clk 0:00:10]}
66... Ke5 {[%clk 0:00:39.5]} 67. h5 {[%clk 0:00:10.3]} 67... Kf6 {[%clk
0:00:39.9]} 68. a4 {[%clk 0:00:10.9]} 68... Kg5 {[%clk 0:00:40.8]} 69. a5 {[%clk
0:00:11.1]} 1-0

[Event "Late-Titled-Tuesday-Blitz-May-14-2024"]
[Site "Chess.com"]
[Date "2024.05.14"]
[Round "2"]
[White "gmcorrales"]
[Black "Dolphin_2010"]
[Result "1-0"]
[WhiteElo "2934"]
[BlackElo "2636"]
[TimeControl "180+1"]
[EndTime "14:19:14 PDT"]
[Termination "gmcorrales won by checkmate"]

1. d4 {[%clk 0:02:57.6]} 1... d5 {[%clk 0:02:37.7]} 2. Nf3 {[%clk 0:02:57.5]}
2... Nf6 {[%clk 0:02:35.6]} 3. c4 {[%clk 0:02:58.4]} 3... c6 {[%clk 0:02:34.6]}
4. cxd5 {[%clk 0:02:45.7]} 4... cxd5 {[%clk 0:02:35.5]} 5. Nc3 {[%clk
0:02:45.9]} 5... Nc6 {[%clk 0:02:35.6]} 6. Bf4 {[%clk 0:02:45.9]} 6... a6 {[%clk
0:02:35.9]} 7. Rc1 {[%clk 0:02:35.3]} 7... Bf5 {[%clk 0:02:35.3]} 8. e3 {[%clk
0:02:28.5]} 8... Rc8 {[%clk 0:02:35.4]} 9. Qb3 {[%clk 0:02:21.9]} 9... Na5
{[%clk 0:02:33.5]} 10. Qa4+ {[%clk 0:02:19]} 10... Bd7 {[%clk 0:02:29.4]} 11.
Qd1 {[%clk 0:02:12.7]} 11... e6 {[%clk 0:02:10]} 12. Bd3 {[%clk 0:02:09.1]}
12... Be7 {[%clk 0:02:02.8]} 13. Ne5 {[%clk 0:02:01.2]} 13... Nc4 {[%clk
0:01:42.5]} 14. Bxc4 {[%clk 0:01:47.7]} 14... dxc4 {[%clk 0:01:43.4]} 15. O-O
{[%clk 0:01:47.5]} 15... Nd5 {[%clk 0:01:06.8]} 16. Qg4 {[%clk 0:01:42.9]} 16...
Bf6 {[%clk 0:00:49.6]} 17. Bg3 {[%clk 0:01:34.5]} 17... h5 {[%clk 0:00:29.8]}
18. Qf3 {[%clk 0:01:31.6]} 18... h4 {[%clk 0:00:27.6]} 19. Bf4 {[%clk
0:01:27.1]} 19... Nxf4 {[%clk 0:00:20.5]} 20. Qxf4 {[%clk 0:01:23.6]} 20... O-O
{[%clk 0:00:17.7]} 21. Ne4 {[%clk 0:01:20.5]} 21... Bc6 {[%clk 0:00:14.6]} 22.
Rxc4 {[%clk 0:01:00.3]} 22... Bxe5 {[%clk 0:00:12]} 23. Qxe5 {[%clk 0:00:57.1]}
23... Bxe4 {[%clk 0:00:06.5]} 24. Rxc8 {[%clk 0:00:54.1]} 24... Qxc8 {[%clk
0:00:07.4]} 25. Qxe4 {[%clk 0:00:51.6]} 25... b5 {[%clk 0:00:07.6]} 26. h3
{[%clk 0:00:47.6]} 26... Qc4 {[%clk 0:00:04.3]} 27. b3 {[%clk 0:00:46.7]} 27...
Qe2 {[%clk 0:00:03.8]} 28. a4 {[%clk 0:00:46.2]} 28... b4 {[%clk 0:00:01.5]} 29.
d5 {[%clk 0:00:43.4]} 29... exd5 {[%clk 0:00:01.1]} 30. Qxd5 {[%clk 0:00:44.3]}
30... Qc2 {[%clk 0:00:00.8]} 31. Rd1 {[%clk 0:00:42.7]} 31... a5 {[%clk
0:00:01.2]} 32. Qd3 {[%clk 0:00:41.5]} 32... Qb2 {[%clk 0:00:00.7]} 33. Rd2
{[%clk 0:00:37.6]} 33... Qf6 {[%clk 0:00:01.3]} 34. Qd4 {[%clk 0:00:36.2]} 34...
Qf5 {[%clk 0:00:01.4]} 35. e4 {[%clk 0:00:18.7]} 35... Qf4 {[%clk 0:00:01.4]}
36. e5 {[%clk 0:00:17.4]} 36... Qf5 {[%clk 0:00:01.4]} 37. Rd3 {[%clk
0:00:15.3]} 37... g6 {[%clk 0:00:01.3]} 38. Rf3 {[%clk 0:00:15.1]} 38... Qb1+
{[%clk 0:00:01.2]} 39. Kh2 {[%clk 0:00:15.7]} 39... Qc1 {[%clk 0:00:01.2]} 40.
Qxh4 {[%clk 0:00:15.1]} 40... Qc7 {[%clk 0:00:01.8]} 41. Qf4 {[%clk 0:00:15.1]}
41... Re8 {[%clk 0:00:02.2]} 42. Re3 {[%clk 0:00:12.9]} 42... Re6 {[%clk
0:00:02.6]} 43. Qg3 {[%clk 0:00:13.3]} 43... Kg7 {[%clk 0:00:02.2]} 44. f4
{[%clk 0:00:13.8]} 44... Kf8 {[%clk 0:00:01.8]} 45. Qf3 {[%clk 0:00:12.7]} 45...
Qc1 {[%clk 0:00:02.1]} 46. Rd3 {[%clk 0:00:11.5]} 46... Kg7 {[%clk 0:00:02.2]}
47. Qg3 {[%clk 0:00:10.9]} 47... Qc2 {[%clk 0:00:02]} 48. Rd8 {[%clk 0:00:10.7]}
48... Qc7 {[%clk 0:00:01.3]} 49. Qh4 {[%clk 0:00:10.8]} 49... f6 {[%clk
0:00:00.4]} 50. Qh8+ {[%clk 0:00:09.7]} 50... Kf7 {[%clk 0:00:00.3]} 51. Qh7#
{[%clk 0:00:10.6]} 1-0